fUST/lending_fUST_20250625
["ID","MTS","AMOUNT","RATE_DAILY","PERIOD"]
[367500418,1750828246113,-1047.37,0.00018295,2]
[367500421,1750828246123,-460.0,0.00018295,2]
[367500422,1750828246132,-460.0,0.00018296,2]
[367500424,1750828246142,-330.51,0.00018296,2]
[367500427,1750828246152,-1188.89,0.00018296,2]
[367500428,1750828246161,-643.16,0.00018296,2]
[367500430,1750828246170,-460.0,0.00018296,2]
[367500432,1750828246180,-956.17,0.00018296,2]
[367500435,1750828246189,-300.18,0.00018296,2]
[367500436,1750828246198,-676.68,0.00018296,2]
[367500438,1750828246208,-460.0,0.00018296,2]
[367500441,1750828246217,-746.51,0.00018296,2]
[367500443,1750828246226,-460.0,0.00018296,2]
[367500445,1750828246236,-818.45,0.00018296,2]
[367500446,1750828246246,-460.0,0.00018296,2]
[367500449,1750828246258,-460.0,0.00018296,2]
[367500450,1750828246267,-1254.3,0.00018296,2]
[367500452,1750828246276,-440.2058533,0.00018296,2]
[367500455,1750828246286,-460.0,0.00018296,2]
[367500457,1750828246295,-673.47,0.00018296,2]
[367500459,1750828246304,-398.3,0.00018296,2]
[367500460,1750828246314,-460.0,0.00018297,2]
[367500462,1750828246323,-460.0,0.00018297,2]
[367500464,1750828246332,-460.0,0.00018297,2]
[367500466,1750828246342,-460.0,0.00018297,2]
[367500468,1750828246351,-460.0,0.00018297,2]
[367500471,1750828246360,-574.85,0.00018297,2]
[367500473,1750828246370,-460.0,0.00018297,2]
[367500475,1750828246382,-460.0,0.00018297,2]
[367500476,1750828246394,-425.24,0.00018297,2]
[367500478,1750828246404,-460.0,0.00018297,2]
[367500480,1750828246414,-596.1470737,0.000183,2]
[367500482,1750828246423,-3483.09876553,0.00018383,2]
[367500484,1750828246434,-420.0,0.00018486,2]
[367500486,1750828246444,-420.0,0.00018487,2]
[367500489,1750828246455,-179.89206476,0.0001856,2]
[367500490,1750828246465,-790.73,0.00018569,2]
[367500492,1750828246474,-1856.24,0.00018569,2]
[367500494,1750828246483,-765.63,0.00018569,2]
[367500496,1750828246492,-802.0,0.00018569,2]
[367500498,1750828246502,-460.0,0.00018569,2]
[367500500,1750828246511,-556.8,0.00018569,2]
[367500502,1750828246520,-504.7,0.00018569,2]
[367500504,1750828246529,-1047.37,0.00018569,2]
[367500506,1750828246539,-460.0,0.00018569,2]
[367500508,1750828246547,-460.0,0.0001857,2]
[367500510,1750828246557,-1188.89,0.0001857,2]
[367500512,1750828246566,-643.16,0.0001857,2]
[367500514,1750828246575,-460.0,0.0001857,2]
[367500516,1750828246584,-956.17,0.0001857,2]
[367500518,1750828246593,-676.68,0.0001857,2]
[367500520,1750828246602,-460.0,0.0001857,2]
[367500522,1750828246611,-746.51,0.0001857,2]
[367500524,1750828246620,-460.0,0.0001857,2]
[367500526,1750828246630,-818.45,0.0001857,2]
[367500528,1750828246639,-460.0,0.0001857,2]
[367500530,1750828246648,-460.0,0.0001857,2]
[367500532,1750828246658,-1254.3,0.0001857,2]
[367500534,1750828246667,-460.0,0.0001857,2]
[367500536,1750828246676,-673.47,0.0001857,2]
[367500538,1750828246686,-460.0,0.00018571,2]
[367500540,1750828246695,-460.0,0.00018571,2]
[367500542,1750828246704,-460.0,0.00018571,2]
[367500544,1750828246714,-460.0,0.00018571,2]
[367500546,1750828246723,-460.0,0.00018571,2]
[367500548,1750828246732,-574.85,0.00018571,2]
[367500550,1750828246741,-460.0,0.00018571,2]
[367500552,1750828246750,-460.0,0.00018571,2]
[367500554,1750828246759,-460.0,0.00018571,2]
[367500556,1750828246768,-3483.09876553,0.00018624,2]
[367500558,1750828246777,-500.0,0.00018772,2]
[367500560,1750828246785,-502.16347564,0.00018787,2]
[367500562,1750828246794,-1005.50970793,0.00018787,2]
[367500564,1750828246803,-276.07900286,0.00018805,2]
[367500566,1750828246812,-503.57020271,0.00018805,2]
[367500568,1750828246822,-1176.01559857,0.00018808,2]
[367500570,1750828246831,-790.73,0.00018843,2]
[367500572,1750828246841,-1856.24,0.00018843,2]
[367500574,1750828246849,-765.63,0.00018843,2]
[367500576,1750828246858,-802.0,0.00018843,2]
[367500578,1750828246868,-460.0,0.00018843,2]
[367500580,1750828246877,-556.8,0.00018843,2]
[367500582,1750828246886,-504.7,0.00018843,2]
[367500584,1750828246896,-1047.37,0.00018843,2]
[367500586,1750828246906,-460.0,0.00018843,2]
[367500588,1750828246915,-303.45,0.00018844,2]
[367500590,1750828246924,-1188.89,0.00018844,2]
[367500592,1750828246933,-643.16,0.00018844,2]
[367500594,1750828246943,-460.0,0.00018844,2]
[367500596,1750828246952,-956.17,0.00018844,2]
[367500598,1750828246961,-676.68,0.00018844,2]
[367500600,1750828246970,-460.0,0.00018844,2]
[367500602,1750828246980,-746.51,0.00018844,2]
[367500604,1750828246991,-460.0,0.00018844,2]
[367500606,1750828247001,-818.45,0.00018844,2]
[367500608,1750828247010,-460.0,0.00018844,2]
[367500610,1750828247019,-460.0,0.00018844,2]
[367500612,1750828247028,-1254.3,0.00018844,2]
[367500615,1750828247038,-460.0,0.00018844,2]
[367500616,1750828247047,-673.47,0.00018844,2]
[367500618,1750828247057,-460.0,0.00018845,2]
[367500621,1750828247066,-460.0,0.00018845,2]
[367500623,1750828247075,-207.44,0.00018845,2]
[367500624,1750828247086,-567.13,0.00018845,2]
[367500627,1750828247095,-460.0,0.00018845,2]
[367500628,1750828247104,-574.85,0.00018845,2]
[367500631,1750828247113,-289.52,0.00018845,2]
[367500633,1750828247123,-460.0,0.00018845,2]
[367500635,1750828247132,-460.0,0.00018845,2]
[367500636,1750828247141,-3483.09876553,0.00018866,2]
[367500638,1750828247152,-150.0,0.000189,2]
[367500641,1750828247161,-155.58929868,0.00019,2]
[367500642,1750828247170,-1688.0,0.00019008,2]
[367500644,1750828247180,-207.4,0.00019008,2]
[367500646,1750828247189,-5000.0,0.00019008,2]
[367500649,1750828247199,-3196.89144433,0.00019008,2]
[367500651,1750828247208,-1384.0,0.00019056,2]
[367500653,1750828247217,-747.81407347,0.00019063,2]
[367500655,1750828247226,-3483.09876553,0.00019107,2]
[367500657,1750828247235,-790.73,0.00019117,2]
[367500659,1750828247245,-1856.24,0.00019117,2]
[367500660,1750828247254,-765.63,0.00019117,2]
[367500663,1750828247263,-802.0,0.00019117,2]
[367500665,1750828247273,-240.74,0.00019117,2]
[367500666,1750828247282,-556.8,0.00019117,2]
[367500669,1750828247292,-504.7,0.00019117,2]
[367500671,1750828247301,-1047.37,0.00019117,2]
[367500673,1750828247311,-460.0,0.00019117,2]
[367500674,1750828247320,-1188.89,0.00019118,2]
[367500689,1750828247449,-643.16,0.00019118,2]
[367500691,1750828247459,-460.0,0.00019118,2]
[367500693,1750828247468,-956.17,0.00019118,2]
[367500695,1750828247478,-676.68,0.00019118,2]
[367500696,1750828247487,-460.0,0.00019118,2]
[367500697,1750828247497,-746.51,0.00019118,2]
[367500698,1750828247507,-460.0,0.00019118,2]
[367500699,1750828247516,-818.45,0.00019118,2]
[367500700,1750828247525,-460.0,0.00019118,2]
[367500701,1750828247535,-460.0,0.00019118,2]
[367500702,1750828247544,-1254.3,0.00019118,2]
[367500703,1750828247554,-304.91765923,0.00019118,2]
[367500704,1750828247564,-673.47,0.00019118,2]
[367500705,1750828247573,-460.0,0.00019119,2]
[367500706,1750828247582,-460.0,0.00019119,2]
[367500707,1750828247592,-357.79,0.00019119,2]
[367500708,1750828247601,-574.85,0.00019119,2]
[367500709,1750828247611,-460.0,0.00019119,2]
[367500710,1750828247620,-460.0,0.00019119,2]
[367500711,1750828247630,-500.0,0.00019164,2]
[367500712,1750828247639,-500.0,0.00019178,2]
[367500713,1750828247649,-500.0,0.00019178,2]
[367500714,1750828247659,-513.66537299,0.00019178,2]
[367500715,1750828247668,-500.0,0.00019178,2]
[367500716,1750828247678,-500.0,0.00019178,2]
[367500717,1750828247687,-500.0,0.00019178,2]
[367500718,1750828247696,-151.0,0.00019233,2]
[367500719,1750828247706,-151.0,0.00019233,2]
[367500720,1750828247715,-500.0,0.00019233,2]
[367500721,1750828247725,-500.0,0.00019233,2]
[367500722,1750828247734,-151.0,0.00019233,2]
[367500723,1750828247744,-151.0,0.00019233,2]
[367500724,1750828247753,-151.0,0.00019233,2]
[367500725,1750828247762,-151.0,0.00019233,2]
[367500726,1750828247771,-151.0,0.00019233,2]
[367500727,1750828247780,-151.0,0.00019233,2]
[367500728,1750828247789,-151.0,0.00019233,2]
[367500729,1750828247798,-151.0,0.00019233,2]
[367500730,1750828247807,-151.0,0.00019233,2]
[367500731,1750828247816,-151.0,0.00019233,2]
[367500732,1750828247826,-151.0,0.00019233,2]
[367500733,1750828247835,-151.0,0.00019233,2]
[367500734,1750828247844,-500.0,0.00019233,2]
[367500735,1750828247853,-151.0,0.00019233,2]
[367500736,1750828247863,-151.13355659,0.00019233,2]
[367500737,1750828247872,-500.0,0.00019233,2]
[367500738,1750828247881,-500.0,0.00019233,2]
[367500739,1750828247890,-500.0,0.00019233,2]
[367500740,1750828247900,-500.0,0.00019233,2]
[367500741,1750828247909,-183.5879596,0.00019233,2]
[367500742,1750828247918,-226.50319526,0.00019233,2]
[367500743,1750828247928,-271.69556157,0.00019233,2]
[367500744,1750828247937,-151.0,0.00019233,2]
[367500745,1750828247946,-500.0,0.00019233,2]
[367500746,1750828247957,-151.0,0.00019233,2]
[367500747,1750828247966,-151.0,0.00019233,2]
[367500748,1750828247976,-151.0,0.00019233,2]
[367500749,1750828247985,-151.0,0.00019233,2]
[367500750,1750828247995,-151.0999679,0.00019233,2]
[367500751,1750828248004,-151.0,0.00019233,2]
[367500752,1750828248013,-151.0,0.00019233,2]
[367500753,1750828248024,-500.0,0.00019233,2]
[367500754,1750828248033,-500.0,0.00019233,2]
[367500755,1750828248043,-151.0,0.00019233,2]
[367500756,1750828248052,-500.0,0.00019233,2]
[367500757,1750828248062,-151.0,0.0001926,2]
[367500758,1750828248071,-151.0,0.0001926,2]
[367500759,1750828248081,-547.58172341,0.0001926,2]
[367500760,1750828248090,-548.91885301,0.0001926,2]
[367500761,1750828248099,-151.0,0.0001926,2]
[367500762,1750828248109,-151.0,0.0001926,2]
[367500763,1750828248118,-151.0,0.0001926,2]
[367500764,1750828248128,-151.0,0.0001926,2]
[367500765,1750828248138,-151.0,0.0001926,2]
[367500766,1750828248147,-151.0,0.0001926,2]
[367500767,1750828248157,-151.0,0.0001926,2]
[367500768,1750828248166,-151.0,0.0001926,2]
[367500769,1750828248176,-151.0,0.0001926,2]
[367500770,1750828248186,-151.0,0.0001926,2]
[367500771,1750828248195,-500.60524823,0.0001926,2]
[367500772,1750828248205,-151.0,0.0001926,2]
[367500773,1750828248214,-500.0,0.0001926,2]
[367500774,1750828248224,-650.48,0.0001926,2]
[367500775,1750828248233,-500.0,0.0001926,2]
[367500776,1750828248243,-500.0,0.0001926,2]
[367500777,1750828248252,-151.28214266,0.0001926,2]
[367500778,1750828248261,-500.53439709,0.0001926,2]
[367500779,1750828248271,-151.0,0.0001926,2]
[367500780,1750828248280,-151.0,0.0001926,2]
[367500781,1750828248289,-151.0,0.0001926,2]
[367500782,1750828248298,-151.0,0.0001926,2]
[367500783,1750828248308,-500.0,0.0001926,2]
[367500784,1750828248317,-500.0,0.0001926,2]
[367500785,1750828248326,-500.0,0.0001926,2]
[367500786,1750828248336,-151.0,0.00019288,2]
[367500787,1750828248345,-246.01127713,0.00019288,2]
[367500788,1750828248354,-151.0,0.00019288,2]
[367500789,1750828248364,-151.0,0.00019288,2]
[367500790,1750828248373,-198.73304968,0.00019288,2]
[367500791,1750828248386,-198.0,0.00019288,2]
[367500792,1750828248395,-198.0,0.00019288,2]
[367500793,1750828248404,-198.0,0.00019288,2]
[367500794,1750828248413,-198.0,0.00019288,2]
[367500795,1750828248423,-198.0,0.00019288,2]
[367500796,1750828248433,-198.42664727,0.00019288,2]
[367500797,1750828248441,-198.0,0.00019288,2]
[367500798,1750828248450,-198.0,0.00019288,2]
[367500799,1750828248461,-500.0,0.00019288,2]
[367500800,1750828248472,-500.0,0.00019288,2]
[367500801,1750828248480,-500.0,0.00019288,2]
[367500802,1750828248490,-165.58155532,0.00019288,2]
[367500803,1750828248500,-265.81581277,0.00019288,2]
[367500804,1750828248509,-198.0,0.00019288,2]
[367500805,1750828248518,-151.0,0.00019288,2]
[367500806,1750828248528,-500.0,0.00019288,2]
[367500807,1750828248537,-151.0,0.00019288,2]
[367500808,1750828248548,-230.98613896,0.00019288,2]
[367500809,1750828248557,-178.72602344,0.00019315,2]
[367500810,1750828248567,-151.0,0.00019315,2]
[367500811,1750828248576,-249.0,0.00019315,2]
[367500812,1750828248586,-500.0,0.00019315,2]
[367500813,1750828248595,-151.0,0.00019315,2]
[367500814,1750828248605,-500.0,0.00019315,2]
[367500815,1750828248614,-100000.0,0.00019329,2]
[367500816,1750828248623,-295.32217431,0.00019343,2]
[367500817,1750828248632,-568.86168017,0.00019343,2]
[367500818,1750828248641,-198.0,0.00019343,2]
[367500819,1750828248651,-151.0,0.00019343,2]
[367500820,1750828248660,-3483.09876553,0.00019348,2]
[367500821,1750828248671,-404.11845491,0.00019391,2]
[367500822,1750828248680,-790.73,0.00019391,2]
[367500823,1750828248689,-1856.24,0.00019391,2]
[367500824,1750828248698,-765.63,0.00019391,2]
[367500825,1750828248708,-802.0,0.00019391,2]
[367500826,1750828248718,-556.8,0.00019391,2]
[367500827,1750828248727,-504.7,0.00019391,2]
[367500828,1750828248737,-1047.37,0.00019391,2]
[367500829,1750828248746,-460.0,0.00019391,2]
[367500830,1750828248756,-1188.89,0.00019392,2]
[367500831,1750828248766,-643.16,0.00019392,2]
[367500832,1750828248776,-460.0,0.00019392,2]
[367500833,1750828248785,-956.17,0.00019392,2]
[367500834,1750828248794,-676.68,0.00019392,2]
[367500835,1750828248804,-374.08,0.00019392,2]
[367500836,1750828248813,-746.51,0.00019392,2]
[367500837,1750828248822,-460.0,0.00019392,2]
[367500838,1750828248832,-818.45,0.00019392,2]
[367500839,1750828248841,-460.0,0.00019392,2]
[367500840,1750828248850,-319.6621788,0.00019392,2]
[367500841,1750828248860,-1254.3,0.00019392,2]
[367500842,1750828248869,-673.47,0.00019392,2]
[367500843,1750828248878,-460.0,0.00019393,2]
[367500844,1750828248888,-460.0,0.00019393,2]
[367500845,1750828248898,-574.85,0.00019393,2]
[367500846,1750828248907,-460.0,0.00019393,2]
[367500847,1750828248917,-151.0,0.00019393,2]
[367500848,1750828248926,-151.0,0.00019393,2]
[367500849,1750828248936,-460.0,0.00019393,2]
[367500850,1750828248945,-3483.09876553,0.0001959,2]
[367500851,1750828248955,-173.0,0.00019598,2]
[367500852,1750828248965,-790.73,0.00019665,2]
[367500853,1750828248974,-1856.24,0.00019665,2]
[367500854,1750828248984,-765.63,0.00019665,2]
[367500855,1750828248994,-802.0,0.00019665,2]
[367500856,1750828249004,-556.8,0.00019665,2]
[367500857,1750828249014,-504.7,0.00019665,2]
[367500858,1750828249024,-1047.37,0.00019665,2]
[367500859,1750828249034,-529.43751505,0.00019665,2]
[367500860,1750828249044,-1188.89,0.00019666,2]
[367500861,1750828249054,-643.16,0.00019666,2]
[367500862,1750828249064,-460.0,0.00019666,2]
[367500863,1750828249073,-956.17,0.00019666,2]
[367500864,1750828249083,-676.68,0.00019666,2]
[367500865,1750828249092,-746.51,0.00019666,2]
[367500866,1750828249102,-151.0,0.00019666,2]
[367500867,1750828249111,-460.0,0.00019666,2]
[367500868,1750828249120,-818.45,0.00019666,2]
[367500869,1750828249130,-151.0,0.00019666,2]
[367500870,1750828249139,-339.59,0.00019666,2]
[367500871,1750828249148,-151.0,0.00019666,2]
[367500872,1750828249158,-151.0,0.00019666,2]
[367500873,1750828249168,-151.0,0.00019666,2]
[367500874,1750828249177,-151.0,0.00019666,2]
[367500875,1750828249187,-151.0,0.00019666,2]
[367500876,1750828249196,-279.191052,0.00019666,2]
[367500877,1750828249208,-279.191052,0.00019666,2]
[367500878,1750828249218,-1254.3,0.00019666,2]
[367500879,1750828249227,-151.0,0.00019666,2]
[367500880,1750828249237,-151.0,0.00019666,2]
[367500881,1750828249247,-673.47,0.00019666,2]
[367500882,1750828249256,-151.0,0.00019666,2]
[367500883,1750828249266,-151.0,0.00019666,2]
[367500884,1750828249275,-151.0,0.00019666,2]
[367500885,1750828249285,-173.0,0.00019666,2]
[367500886,1750828249294,-288.27,0.00019667,2]
[367500887,1750828249304,-460.0,0.00019667,2]
[367500888,1750828249313,-574.85,0.00019667,2]
[367500889,1750828249322,-460.0,0.00019667,2]
[367500890,1750828249332,-460.0,0.00019667,2]
[367500891,1750828249341,-1384.0,0.00019692,2]
[367500892,1750828249351,-1384.0,0.0001974,2]
[367500893,1750828249360,-276.07900286,0.00019794,2]
[367500894,1750828249370,-3483.09876553,0.00019831,2]
[367500895,1750828249380,-790.73,0.00019939,2]
[367500896,1750828249392,-1856.24,0.00019939,2]
[367500897,1750828249402,-765.63,0.00019939,2]
[367500898,1750828249411,-802.0,0.00019939,2]
[367500899,1750828249420,-556.8,0.00019939,2]
[367500900,1750828249429,-504.7,0.00019939,2]
[367500901,1750828249439,-1047.37,0.00019939,2]
[367500902,1750828249448,-151.0,0.0001994,2]
[367500903,1750828249459,-151.0,0.0001994,2]
[367500904,1750828249469,-151.0,0.0001994,2]
[367500905,1750828249479,-151.0,0.0001994,2]
[367500906,1750828249488,-1188.89,0.0001994,2]
[367500907,1750828249497,-151.0,0.0001994,2]
[367500908,1750828249507,-151.0,0.0001994,2]
[367500909,1750828249516,-156.515868,0.0001994,2]
[367500910,1750828249526,-643.16,0.0001994,2]
[367500911,1750828249535,-151.0,0.0001994,2]
[367500912,1750828249545,-354.67,0.0001994,2]
[367500913,1750828249554,-956.17,0.0001994,2]
[367500914,1750828249564,-434.797125,0.0001994,2]
[367500915,1750828249572,-434.797125,0.0001994,2]
[367500916,1750828249582,-676.68,0.0001994,2]
[367500917,1750828249591,-746.51,0.0001994,2]
[367500918,1750828249600,-460.0,0.0001994,2]
[367500919,1750828249610,-818.45,0.0001994,2]
[367500920,1750828249619,-1254.3,0.0001994,2]
[367500921,1750828249629,-673.47,0.0001994,2]
[367500922,1750828249638,-460.0,0.00019941,2]
[367500923,1750828249648,-574.85,0.00019941,2]
[367500924,1750828249657,-460.0,0.00019941,2]
[367500925,1750828249666,-460.0,0.00019941,2]
[367500926,1750828249675,-300.0,0.0002,2]
[367500927,1750828249685,-3483.09876553,0.00020072,2]
[367500928,1750828249694,-177.8504266,0.000201,2]
[367500929,1750828249703,-938.153,0.00020164,2]
[367500930,1750828249713,-587.0,0.00020193,2]
[367500931,1750828249723,-587.0,0.00020194,2]
[367500932,1750828249732,-790.73,0.00020213,2]
[367500933,1750828249741,-1856.24,0.00020213,2]
[367500934,1750828249750,-765.63,0.00020213,2]
[367500935,1750828249759,-802.0,0.00020213,2]
[367500936,1750828249769,-556.8,0.00020213,2]
[367500937,1750828249778,-504.7,0.00020213,2]
[367500938,1750828249787,-1047.37,0.00020213,2]
[367500939,1750828249796,-1188.89,0.00020214,2]
[367500940,1750828249806,-643.16,0.00020214,2]
[367500941,1750828249815,-956.17,0.00020214,2]
[367500942,1750828249824,-676.68,0.00020214,2]
[367500943,1750828249833,-151.0,0.00020214,2]
[367500944,1750828249842,-153.047609,0.00020214,2]
[367500945,1750828249851,-151.0,0.00020214,2]
[367500946,1750828249860,-746.51,0.00020214,2]
[367500947,1750828249870,-151.0,0.00020214,2]
[367500948,1750828249879,-460.0,0.00020214,2]
[367500949,1750828249889,-818.45,0.00020214,2]
[367500950,1750828249898,-1254.3,0.00020214,2]
[367500951,1750828249907,-673.47,0.00020214,2]
[367500952,1750828249917,-190.96,0.00020215,2]
[367500953,1750828249927,-574.85,0.00020215,2]
[367500954,1750828249936,-460.0,0.00020215,2]
[367500955,1750828249946,-460.0,0.00020215,2]
[367500956,1750828249956,-3483.09876553,0.00020314,3]
[367500957,1750828249965,-215.0738,0.00020377,2]
[367500958,1750828249975,-173.0,0.00020481,2]
[367500959,1750828249984,-790.73,0.00020487,2]
[367500960,1750828249994,-1856.24,0.00020487,2]
[367500961,1750828250004,-765.63,0.00020487,2]
[367500962,1750828250013,-802.0,0.00020487,2]
[367500963,1750828250022,-556.8,0.00020487,2]
[367500964,1750828250031,-504.7,0.00020487,2]
[367500965,1750828250041,-1047.37,0.00020487,2]
[367500966,1750828250050,-1188.89,0.00020488,2]
[367500967,1750828250060,-643.16,0.00020488,2]
[367500968,1750828250070,-956.17,0.00020488,2]
[367500969,1750828250080,-676.68,0.00020488,2]
[367500970,1750828250089,-746.51,0.00020488,2]
[367500971,1750828250099,-460.0,0.00020488,2]
[367500972,1750828250108,-818.45,0.00020488,2]
[367500973,1750828250118,-1254.3,0.00020488,2]
[367500974,1750828250128,-673.47,0.00020488,2]
[367500975,1750828250138,-574.85,0.00020489,2]
[367500976,1750828250147,-460.0,0.00020489,2]
[367500977,1750828250157,-460.0,0.00020489,2]
[367500978,1750828250167,-404.11845491,0.00020535,2]
[367500979,1750828250177,-173.0,0.00020542,2]
[367500980,1750828250187,-406.0,0.00020544,2]
[367500981,1750828250196,-500.0,0.00020547,14]
[367500982,1750828250205,-3483.09876553,0.00020555,3]
[367500983,1750828250215,-173.0,0.00020563,2]
[367500984,1750828250224,-12558.06783089,0.0002066,3]
[367500985,1750828250234,-846.80634355,0.0002066,3]
[367500986,1750828250244,-524.21181985,0.0002066,3]
[367500987,1750828250253,-213.69531788,0.0002066,3]
[367500988,1750828250263,-790.73,0.00020761,2]
[367500989,1750828250272,-1856.24,0.00020761,2]
[367500990,1750828250281,-765.63,0.00020761,2]
[367500991,1750828250291,-802.0,0.00020761,2]
[367500992,1750828250300,-556.8,0.00020761,2]
[367500993,1750828250309,-504.7,0.00020761,2]
[367500994,1750828250318,-1047.37,0.00020761,2]
[367500995,1750828250442,-1188.89,0.00020762,2]
[367500996,1750828250452,-643.16,0.00020762,2]
[367500997,1750828250462,-956.17,0.00020762,2]
[367500998,1750828250472,-676.68,0.00020762,2]
[367500999,1750828250482,-746.51,0.00020762,2]
[367501000,1750828250491,-460.0,0.00020762,2]
[367501001,1750828250500,-818.45,0.00020762,2]
[367501002,1750828250510,-1254.3,0.00020762,2]
[367501003,1750828250519,-673.47,0.00020762,2]
[367501004,1750828250529,-574.85,0.00020763,2]
[367501005,1750828250539,-460.0,0.00020763,2]
[367501006,1750828250548,-460.0,0.00020763,2]
[367501007,1750828250557,-276.07900286,0.00020784,2]
[367501008,1750828250566,-2649.85231162,0.00020797,4]
[367501009,1750828250687,-833.24645391,0.00020797,4]
[367501010,1750828250696,-500.0,0.00020821,15]
[367501011,1750828250707,-9722.21439106,0.000209,2]
[367501012,1750828250716,-173.0,0.00020948,2]
[367501013,1750828250725,-160.63345,0.00020951,2]
[367501014,1750828250734,-200.0,0.00020999,2]
[367501015,1750828250743,-16544.33775874,0.00021,2]
[367501016,1750828250754,-1177.45222602,0.00021,2]
[367501017,1750828250766,-474.14796683,0.00021,2]
[367501018,1750828250799,-1212.94581559,0.00021,2]
[367501019,1750828250811,-5552.66689364,0.00021,2]
[367501020,1750828250899,-3111.40133147,0.000189,2]
[367501021,1750828250910,-8562.60987931,0.00021,2]
[367501022,1750828250972,-5615.78106441,0.00021,2]
[367501023,1750828250983,-29470.55697657,0.00021,2]
[367501024,1750828250993,-22013.59804968,0.00021,2]
[367501025,1750828251003,-285247.98877531,0.00021,2]
[367501026,1750828455532,-178.0,0.00016438,3]
[367501027,1750828455555,-300.0,0.00016923,2]
[367501028,1750828455575,-460.0,0.00016924,2]
[367501029,1750828455597,-460.0,0.00016924,2]
[367501030,1750828455618,-460.0,0.00016924,2]
[367501031,1750828455638,-460.0,0.00016924,2]
[367501032,1750828455659,-460.0,0.00016924,2]
[367501033,1750828455679,-460.0,0.00016924,2]
[367501034,1750828455700,-460.0,0.00016924,2]
[367501035,1750828455720,-460.0,0.00016924,2]
[367501036,1750828455741,-460.0,0.00016924,2]
[367501037,1750828455762,-460.0,0.00016924,2]
[367501038,1750828455783,-460.0,0.00016924,2]
[367501039,1750828455804,-460.0,0.00016924,2]
[367501040,1750828455826,-460.0,0.00016924,2]
[367501041,1750828455847,-1034.06,0.00016924,2]
[367501042,1750828455867,-460.0,0.00016924,2]
[367501043,1750828455889,-492.84,0.00016924,2]
[367501044,1750828455911,-460.0,0.00016924,2]
[367501045,1750828455934,-548.63,0.00016924,2]
[367501046,1750828455956,-460.0,0.00016924,2]
[367501047,1750828455978,-460.0,0.00016924,2]
[367501048,1750828455998,-460.0,0.00016925,2]
[367501049,1750828456020,-460.0,0.00016925,2]
[367501050,1750828456040,-460.0,0.00016925,2]
[367501051,1750828456061,-460.0,0.00016925,2]
[367501052,1750828456081,-460.0,0.00016925,2]
[367501053,1750828456104,-460.0,0.00016925,2]
[367501054,1750828456125,-531.23,0.00016925,2]
[367501055,1750828456146,-500.0,0.00016925,2]
[367501056,1750828456167,-460.0,0.00016925,2]
[367501057,1750828456188,-460.0,0.00016925,2]
[367501058,1750828456210,-460.0,0.00016925,2]
[367501059,1750828456230,-537.97,0.00016925,2]
[367501060,1750828456252,-689.17,0.00016925,2]
[367501061,1750828456272,-460.0,0.00016925,2]
[367501062,1750828456293,-460.0,0.00016925,2]